bitfinex-derivatives/quotes_SOLF0:USTF0_20260127
["timestamp","ask_amount","ask_price","bid_price","bid_amount"]
[1769513004903,8.98954591,123.78,123.73,3.55043833]
[1769513006315,8.98954591,123.78,123.72,7.2841]
[1769513006508,1.70864591,123.77,123.72,7.2841]
[1769513007211,1.70864591,123.77,123.72,10.83453833]
[1769513008115,1.70864591,123.77,123.72,3.55043833]
[1769513009511,5.06121694,123.75,123.65,113.37]
[1769513009711,1.70864591,123.73,123.65,437.81864591]
[1769513010912,1.70864591,123.73,123.69,7.286]
[1769513011113,4.591e-05,123.71,123.65,436.11]
[1769513011508,4.591e-05,123.71,123.66,3.52944397]
[1769513011816,4.591e-05,123.71,123.69,10.81544397]
[1769513012018,4.591e-05,123.71,123.65,436.11]
[1769513012319,1.70864591,123.73,123.65,436.11]
[1769513013014,1.70864591,123.73,123.69,7.286]
[1769513014018,1.70864591,123.73,123.69,10.81544397]
[1769513015520,12.34381694,123.75,123.69,10.81544397]
[1769513016921,5.06121694,123.75,123.69,10.81544397]
[1769513020114,5.06121694,123.75,123.7,7.2852]
[1769513022925,5.06121694,123.75,123.69,10.81534397]
[1769513027529,3.35257103,123.77,123.71,3.52944397]
[1769513027734,5.06121694,123.77,123.71,3.52944397]
[1769513028630,12.34261694,123.77,123.71,10.81424397]
[1769513030434,3.35257103,123.76,123.71,10.81424397]
[1769513030836,10.63477103,123.76,123.71,3.52944397]
[1769513031024,12.34341694,123.76,123.71,3.52944397]
[1769513034535,3.46309443,123.75,123.71,3.52944397]
[1769513034744,3.46309443,123.75,123.7,7.2853]
[1769513035034,10.74569443,123.75,123.69,3.49478316]
[1769513037133,12.45434034,123.75,123.69,3.49478316]
[1769513041229,7.2832,123.74,123.69,3.49478316]
[1769513046538,10.74629443,123.74,123.69,3.49478316]
[1769513050641,3.46309443,123.73,123.69,10.78078316]
[1769513051945,3.46309443,123.73,123.68,7.2866]
[1769513052245,3.46309443,123.72,123.68,7.2866]
[1769513052439,5.17174034,123.72,123.68,7.2866]
[1769513054139,3.46309443,123.72,123.68,7.2866]
[1769513056943,3.46309443,123.72,123.67,3.49478316]
[1769513069755,3.46309443,123.72,123.67,10.78198316]
[1769513074854,10.74739443,123.72,123.67,3.49478316]
[1769513075153,5.22232089,123.71,123.65,3.54296461]
[1769513075956,12.50732089,123.71,123.65,3.54296461]
[1769513081857,12.50732089,123.71,123.65,10.83126461]
[1769513083561,5.22232089,123.71,123.65,10.83126461]
[1769513084859,5.22232089,123.71,123.66,3.54296461]
[1769513091964,3.51162954,123.71,123.66,3.54296461]
[1769513092866,10.79672954,123.71,123.66,3.54296461]
[1769513094970,7.2843,123.72,123.67,3.43318358]
[1769513095171,4.91403752,123.73,123.67,3.43318358]
[1769513095670,12.19783752,123.73,123.67,3.43318358]
[1769513096071,12.19783752,123.73,123.68,3.43318358]
[1769513096660,10.48714617,123.73,123.68,3.43318358]
[1769513096863,3.20334617,123.72,123.66,3.43318358]
[1769513097169,4.91403752,123.72,123.66,3.43318358]
[1769513097975,7.285,123.71,123.66,3.43318358]
[1769513100882,12.19833752,123.72,123.66,3.43318358]
[1769513102585,3.20334617,123.72,123.67,3.43318358]
[1769513102785,4.91403752,123.74,123.67,3.43318358]
[1769513103281,3.20334617,123.73,123.67,3.43318358]
[1769513103984,3.20334617,123.73,123.68,10.71978358]
[1769513105279,3.20334617,123.75,123.69,3.43318358]
[1769513105485,4.91403752,123.75,123.69,3.43318358]
[1769513105677,3.20334617,123.74,123.69,3.43318358]
[1769513111083,1.71069135,123.75,123.69,3.43318358]
[1769513111283,10.48524617,123.76,123.71,3.43318358]
[1769513112187,12.19593752,123.76,123.71,3.43318358]
[1769513116381,10.48524617,123.76,123.71,3.43318358]
[1769513124598,3.20334617,123.76,123.71,10.71768358]
[1769513127097,1.40688484,123.78,123.73,5.08611871]
[1769513127290,3.51243061,123.79,123.74,3.3765079]
[1769513130606,5.22204142,123.77,123.72,3.3765079]
[1769513131300,3.51243061,123.77,123.72,3.3765079]
[1769513133902,3.51243061,123.77,123.72,10.6607079]
[1769513136712,5.22204142,123.77,123.72,10.6607079]
[1769513137214,3.51243061,123.77,123.72,10.6607079]
[1769513139021,3.51243061,123.77,123.73,7.2836]
[1769513140318,1.70961081,123.78,123.73,10.6601079]
[1769513140620,5.22204142,123.79,123.73,10.6601079]
[1769513140923,3.51243061,123.78,123.73,10.6601079]
[1769513142922,3.51243061,123.78,123.73,3.3765079]
[1769513145318,3.51243061,123.78,123.72,1.70961081]
[1769513145523,3.51243061,123.78,123.72,5.08611871]
[1769513147826,3.51243061,123.78,123.73,3.3765079]
[1769513151724,10.79323061,123.78,123.73,3.3765079]
[1769513161335,7.2814,123.77,123.73,3.3765079]
[1769513161534,10.69344024,123.77,123.73,3.3765079]
[1769513166138,10.69404024,123.76,123.72,1.70961081]
[1769513166336,3.41204024,123.75,123.69,18.07931891]
[1769513166635,3.41204024,123.74,123.69,3.23772673]
[1769513167233,3.41204024,123.73,123.68,7.2866]
[1769513167935,3.41204024,123.73,123.68,10.52432673]
[1769513169635,5.12165105,123.73,123.68,10.52432673]
[1769513172943,5.12165105,123.73,123.69,7.286]
[1769513173442,1.70961081,123.73,123.69,10.52372673]
[1769513174544,5.12165105,123.74,123.69,10.52372673]
[1769513175845,5.12165105,123.74,123.7,7.2851]
[1769513176240,1.70961081,123.73,123.7,7.2851]
[1769513178949,1.70961081,123.73,123.69,3.23772673]
[1769513179549,1.71027918,123.73,123.69,3.23772673]
[1769513180248,1.71027918,123.75,123.7,3.23772673]
[1769513182048,1.71027918,123.75,123.7,10.52312673]
[1769513182249,5.12231942,123.76,123.7,10.52312673]
[1769513182748,3.41204024,123.76,123.7,10.52312673]
[1769513182955,5.12231942,123.76,123.7,10.52312673]
[1769513183650,3.36270755,123.75,123.7,10.52312673]
[1769513197773,5.07298673,123.75,123.7,10.52312673]
[1769513222794,5.07298673,123.75,123.71,3.26767466]
[1769513222994,4.92220656,123.79,123.72,3.26767466]
[1769513223885,12.20270656,123.79,123.73,3.26767466]
[1769513233599,7.2809,123.78,123.73,3.26767466]
[1769513234199,10.49282738,123.78,123.73,3.26767466]
[1769513240707,7.2809,123.78,123.73,3.26767466]
[1769513240912,1.70877617,123.79,123.74,3.26767466]
[1769513242312,5.03511476,123.79,123.74,3.26767466]
[1769513253127,12.31521476,123.79,123.74,3.26767466]
[1769513256922,3.43750389,123.81,123.75,3.39888559]
[1769513257127,3.43750389,123.8,123.75,3.39888559]
[1769513257317,5.14628006,123.79,123.73,3.39888559]
[1769513258021,5.14628006,123.79,123.74,7.2831]
[1769513258632,5.14628006,123.79,123.74,10.68198559]
[1769513262833,3.43750389,123.78,123.74,7.2831]
[1769513263035,5.14628006,123.78,123.74,7.2831]
[1769513266134,5.14628006,123.78,123.75,7.2823]
[1769513268940,3.43750389,123.78,123.75,7.2823]
[1769513274746,3.43750389,123.78,123.74,3.21984135]
[1769513286259,3.43750389,123.78,123.74,10.50294135]
[1769513307792,1.70875498,123.79,123.74,10.50294135]
[1769513308087,5.07340617,123.79,123.74,10.50294135]
[1769513316091,10.64375119,123.81,123.75,10.73885313]
[1769513316997,10.64375119,123.81,123.75,3.45645313]
[1769513324096,12.35250617,123.81,123.75,3.45645313]
[1769513327308,3.51343017,123.8,123.75,3.45645313]
[1769513331111,3.51343017,123.8,123.75,10.73885313]
[1769513336412,3.51343017,123.8,123.76,3.45933852]
[1769513336615,8.98785498,123.81,123.76,3.45933852]
[1769513336815,12.37152869,123.81,123.76,3.45933852]
[1769513337611,5.09242869,123.83,123.76,3.45933852]
[1769513339017,12.37032869,123.83,123.78,3.45933852]
[1769513339808,5.09242869,123.83,123.78,10.73993852]
[1769513341913,12.37032869,123.83,123.78,3.45933852]
[1769513342113,5.09242869,123.81,123.76,3.45933852]
[1769513343918,5.09242869,123.81,123.76,10.74123852]
[1769513344219,3.38367371,123.81,123.76,10.74123852]
[1769513344415,1.70875498,123.8,123.76,10.74123852]
[1769513348226,1.70875498,123.8,123.76,3.45933852]
[1769513348419,3.38367371,123.81,123.76,3.45933852]
[1769513348420,5.09242869,123.81,123.76,3.45933852]
[1769513351123,5.09242869,123.81,123.76,10.74123852]
[1769513357029,5.09242869,123.81,123.76,3.45933852]
[1769513358932,12.37152869,123.81,123.76,3.45933852]
[1769513363538,12.37095512,123.81,123.76,3.45933852]
[1769513388561,10.66277371,123.81,123.76,3.45933852]
[1769513392760,12.37095512,123.81,123.76,3.45933852]
[1769513398474,3.49728652,123.8,123.75,7.2825]
[1769513399272,3.49728652,123.8,123.75,10.77083263]
[1769513400277,3.49728652,123.8,123.75,3.48833263]
[1769513400978,3.49728652,123.8,123.75,10.77073263]
[1769513401177,3.49728652,123.8,123.75,18.35465257]
[1769513402980,3.49728652,123.8,123.76,3.48833263]
[1769513405876,3.49728652,123.79,123.75,7.58391994]
[1769513406082,3.49728652,123.79,123.74,11.07225257]
[1769513406884,3.49728652,123.79,123.74,18.35505257]
[1769513407370,3.49728652,123.79,123.75,3.48833263]
[1769513414786,3.49728652,123.79,123.75,10.77043263]
[1769513415285,1.70818141,123.8,123.75,10.77043263]
[1769513415286,1.70818141,123.8,123.76,7.2819]
[1769513415485,3.49728652,123.81,123.76,7.2819]
[1769513418891,3.49728652,123.81,123.75,10.77073263]
[1769513420390,3.49728652,123.81,123.76,3.48833263]
[1769513420594,3.49728652,123.81,123.77,3.48833263]
[1769513421492,1.70818141,123.82,123.77,3.48833263]
[1769513421681,5.09285668,123.82,123.77,3.48833263]
[1769513422086,5.09285668,123.82,123.77,10.76953263]
[1769513422490,3.38467527,123.82,123.77,10.76953263]
[1769513422692,5.09285668,123.84,123.78,10.53640194]
[1769513423291,3.38467527,123.83,123.78,3.25570194]
[1769513428503,8.98477924,123.84,123.78,3.25570194]
[1769513429100,7.2772,123.84,123.79,3.53832129]
[1769513430402,10.72335164,123.84,123.79,3.53832129]
[1769513435017,3.44615164,123.84,123.79,3.53832129]
[1769513438708,3.44615164,123.84,123.79,10.81842129]
[1769513440904,3.44615164,123.84,123.8,7.2795]
[1769513442706,5.15373088,123.86,123.81,10.81692129]
[1769513443011,1.70757924,123.84,123.81,7.2786]
[1769513446912,1.70757924,123.84,123.79,10.81792129]
[1769513448822,5.15373088,123.85,123.8,10.81782129]
[1769513451822,3.44615164,123.85,123.8,10.81782129]
[1769513455122,5.15373088,123.85,123.8,10.81782129]
[1769513456325,1.70757924,123.85,123.81,3.23004489]
[1769513459429,5.23806752,123.85,123.81,3.23004489]
[1769513459625,5.23806752,123.85,123.8,7.2795]
[1769513461827,5.23806752,123.85,123.8,10.50954489]
[1769513463231,1.70757924,123.85,123.81,10.50894489]
[1769513464025,3.53048828,123.86,123.82,10.50834489]
[1769513465433,12.51296752,123.88,123.82,10.50834489]
[1769513465627,12.51296752,123.88,123.83,3.23004489]
[1769513465832,3.53048828,123.87,123.83,3.23004489]
[1769513468635,12.51236752,123.89,123.83,3.23004489]
[1769513468834,3.53048828,123.88,123.83,3.23004489]
[1769513472635,3.53048828,123.88,123.83,10.50764489]
[1769513473136,3.53048828,123.88,123.83,3.23004489]
[1769513473736,10.80538828,123.88,123.83,3.23004489]
[1769513478941,10.80538828,123.88,123.84,3.23004489]
[1769513478942,3.53048828,123.88,123.84,3.23004489]
[1769513480241,1.70757924,123.89,123.84,10.50714489]
[1769513482442,1.70757924,123.89,123.85,3.32891513]
[1769513483540,1.70757924,123.89,123.86,3.32891513]
[1769513484743,3.53048828,123.9,123.86,3.32891513]
[1769513485743,5.11054557,123.89,123.84,3.47433049]
[1769513489860,3.40499039,123.89,123.84,10.75153049]
[1769513490053,3.40499039,123.89,123.85,3.47433049]
[1769513494966,10.67929039,123.89,123.82,1.70555518]
[1769513495264,10.67929039,123.89,123.83,3.47433049]
[1769513497966,7.2749,123.88,123.83,3.47433049]
[1769513498369,3.40499039,123.89,123.84,3.47433049]
[1769513499969,10.67929039,123.89,123.84,3.47433049]
[1769513500163,1.70555518,123.9,123.85,3.47433049]
[1769513500875,1.70555518,123.9,123.85,10.75093049]
[1769513501070,5.11054557,123.91,123.85,10.75093049]
[1769513503272,1.70555518,123.9,123.85,10.75093049]
[1769513504172,5.11054557,123.9,123.85,10.75093049]
[1769513504773,5.11054557,123.9,123.86,7.276]
[1769513506671,5.11054557,123.91,123.86,3.47433049]
[1769513506977,1.70555518,123.9,123.86,3.47433049]
[1769513508476,5.11054557,123.9,123.86,3.47433049]
[1769513511972,1.70555518,123.89,123.86,3.47433049]
[1769513513779,10.67749039,123.92,123.86,3.47433049]
[1769513513780,1.70555518,123.9,123.86,3.47433049]
[1769513516679,8.97925518,123.9,123.86,3.47433049]
[1769513519080,7.2737,123.9,123.86,3.47433049]
[1769513519269,8.97925518,123.9,123.86,3.47433049]
[1769513522685,12.44049056,123.9,123.84,10.57726259]
[1769513522885,7.2743,123.89,123.84,10.57726259]
[1769513523084,3.46123538,123.87,123.82,10.85713396]
[1769513523981,3.46123538,123.87,123.82,10.57836259]
[1769513524283,3.46123538,123.87,123.82,3.30006259]
[1769513524475,3.46123538,123.85,123.8,10.85713396]
[1769513524681,3.46123538,123.85,123.8,3.30006259]
[1769513525485,8.98165518,123.86,123.81,10.57896259]
[1769513525685,1.70555518,123.86,123.81,10.57896259]
[1769513526189,12.44229056,123.87,123.81,10.57896259]
[1769513527584,1.70555518,123.86,123.81,10.57896259]
[1769513527981,1.70555518,123.86,123.82,3.30006259]
[1769513528183,12.44229056,123.87,123.82,3.30006259]
[1769513528377,12.44229056,123.87,123.83,3.30006259]
[1769513528378,1.70555518,123.87,123.83,3.30006259]
[1769513529388,3.46123538,123.88,123.83,3.30006259]
[1769513529891,3.46123538,123.88,123.83,10.57766259]
[1769513532189,3.46123538,123.88,123.84,3.30006259]
[1769513532387,1.70555518,123.89,123.84,3.30006259]
[1769513532589,5.16679056,123.89,123.84,3.30006259]
[1769513538695,5.16679056,123.89,123.84,10.57726259]
[1769513544001,5.16679056,123.89,123.84,3.30006259]
[1769513545900,5.16679056,123.89,123.84,10.57726259]
[1769513546507,3.31356098,123.88,123.84,7.2772]
[1769513546994,3.31356098,123.88,123.84,10.47204931]
[1769513547193,1.70555518,123.89,123.84,10.47204931]
[1769513547602,1.70605491,123.89,123.84,10.47204931]
[1769513553607,5.01961589,123.89,123.84,10.47204931]
[1769513556715,5.01961589,123.89,123.85,3.19484931]
[1769513565117,1.70605491,123.89,123.86,3.19484931]
[1769513565416,1.70605491,123.91,123.86,3.19484931]
[1769513565621,5.01961589,123.91,123.86,3.19484931]
[1769513566922,5.01961589,123.91,123.87,3.19484931]
[1769513575725,5.01961589,123.91,123.86,7.2759]
[1769513576027,5.01961589,123.91,123.86,10.65724743]
[1769513577532,1.70605491,123.9,123.86,10.65724743]
[1769513577733,5.01961589,123.91,123.86,10.65724743]
[1769513581029,5.01961589,123.91,123.86,7.2759]
[1769513581234,5.06832422,123.93,123.87,3.38134743]
[1769513582034,3.36226931,123.93,123.87,3.38134743]
[1769513582940,3.36226931,123.93,123.88,10.65614743]
[1769513583740,3.36226931,123.95,123.89,3.38134743]
[1769513583940,5.06832422,123.95,123.89,3.38134743]
[1769513584332,3.36226931,123.94,123.89,3.38134743]
[1769513587037,3.36226931,123.94,123.89,10.65554743]
[1769513592048,12.33792422,123.97,123.91,3.38134743]
[1769513592949,12.33792422,123.97,123.91,10.65444743]
[1769513593548,12.33792422,123.97,123.92,3.38134743]
[1769513594148,114.46877335,124.0,123.92,3.38134743]
[1769513594149,5.06832422,123.99,123.93,3.38134743]
[1769513594352,3.36226931,123.98,123.93,3.38134743]
[1769513596747,10.63146931,123.98,123.93,3.38134743]
[1769513600548,10.63146931,123.98,123.93,10.65324743]
[1769513601655,12.33752422,123.98,123.93,10.65324743]
[1769513602457,3.29422853,123.96,123.92,7.2724]
[1769513602652,5.00028344,123.96,123.92,7.2724]
[1769513602851,1.70605491,123.94,123.89,3.4035527]
[1769513603453,1.70605491,123.94,123.9,7.2732]
[1769513607660,1.70462964,123.94,123.9,7.2732]
[1769513608860,1.70462964,123.94,123.9,10.50260761]
[1769513610562,114.46307335,124.0,123.87,127.7205]
[1769513610563,1.70462964,123.96,123.92,3.22940761]
[1769513612055,1.70462964,123.96,123.92,10.50130761]
[1769513612260,1.70462964,123.96,123.92,3.22940761]
[1769513613358,5.00460355,123.97,123.93,3.22940761]
[1769513614063,3.29997391,123.97,123.93,3.22940761]
[1769513615265,5.00460355,123.97,123.93,3.22940761]
[1769513616868,5.00460355,123.96,123.91,3.22940761]
[1769513619168,3.29997391,123.96,123.91,3.22940761]
[1769513620263,5.00460355,123.96,123.91,3.22940761]
[1769513620767,1.70462964,123.96,123.91,3.22940761]
[1769513624071,5.00460355,123.96,123.91,3.22940761]
[1769513625668,3.29997391,123.96,123.91,3.22940761]
[1769513627776,5.00460355,123.96,123.91,3.22940761]
[1769513636178,3.29997391,123.96,123.91,3.22940761]
[1769513636383,12.36523468,123.98,123.92,3.20554768]
[1769513636577,5.09623468,123.98,123.92,3.20554768]
[1769513636773,3.39160504,123.97,123.92,3.20554768]
[1769513637679,3.39160504,123.97,123.92,10.47804768]
[1769513640586,7.2685,123.99,123.94,3.20554768]
[1769513640587,3.39160504,123.99,123.94,3.20554768]
[1769513640885,3.39160504,123.99,123.93,7.2718]
[1769513641086,3.39160504,123.99,123.93,10.47734768]
[1769513641585,5.09623468,123.98,123.93,10.47734768]
[1769513642286,3.39160504,123.98,123.93,10.47734768]
[1769513649798,8.67237335,124.0,123.94,3.20554768]
[1769513650094,10.37700299,124.0,123.94,3.20554768]
[1769513650294,13.76860803,124.0,123.94,3.20554768]
[1769513659306,5.09623468,124.0,123.94,10.47654768]
[1769513661000,5.09623468,124.0,123.95,10.47624768]
[1769513664412,5.09623468,124.0,123.95,3.20554768]
[1769513669611,5.0947039,124.0,123.95,3.20554768]
[1769513674309,5.0947039,124.0,123.95,10.47624768]
[1769513674507,1.70309886,124.0,123.96,3.3819823]
[1769513674706,10.58732708,124.02,123.97,3.3819823]
[1769513674707,5.02372594,124.02,123.97,3.3819823]
[1769513679015,5.02372594,124.02,123.97,10.6514823]
[1769513681616,3.32062708,124.02,123.97,10.6514823]
[1769513681815,5.02372594,124.02,123.97,10.6514823]
[1769513687814,7.2662,124.03,123.98,3.3819823]
[1769513688119,10.58682708,124.03,123.98,3.3819823]
[1769513690115,5.02372594,124.02,123.97,3.3819823]
[1769513694923,3.48819636,124.01,123.96,3.42346487]
[1769513696823,3.48819636,124.03,123.96,3.42346487]
[1769513697024,3.48819636,124.04,123.98,3.42346487]
[1769513697417,1.70309886,124.03,123.98,3.42346487]
[1769513698213,5.19129522,124.03,123.98,3.42346487]
[1769513699728,3.48819636,124.03,123.98,3.42346487]
[1769513701729,3.48819636,124.02,123.96,3.42346487]
[1769513702729,1.70309886,124.03,123.96,3.42346487]
[1769513702924,5.19129522,124.03,123.97,3.42346487]
[1769513703729,12.45739522,124.03,123.97,3.42346487]
[1769513704826,10.75429636,124.03,123.97,3.42346487]
[1769513705732,12.45739522,124.03,123.97,3.42346487]
[1769513707132,5.19129522,124.03,123.97,3.42346487]
[1769513709022,5.19129522,124.03,123.97,10.69296487]
[1769513709437,5.19129522,124.03,123.98,3.42346487]
[1769513709826,5.19129522,124.03,123.98,10.69236487]
[1769513711226,5.19129522,124.03,123.99,7.2684]
[1769513713938,5.19129522,124.03,123.98,10.69236487]
[1769513715937,3.48819636,124.03,123.98,10.69236487]
[1769513720736,3.48819636,124.03,123.99,3.42346487]
[1769513721043,5.19129522,124.05,124.0,3.42346487]
[1769513721543,3.48819636,124.05,124.0,3.42346487]
[1769513722235,4.91449451,124.07,124.0,3.42346487]
[1769513722742,3.21139565,124.06,124.0,5.12656373]
[1769513722942,3.21139565,124.06,124.02,3.22598021]
[1769513732954,3.21139565,124.06,124.0,10.8149557]
[1769513733153,4.91257048,124.06,124.0,3.5471557]
[1769513736253,12.17697048,124.06,124.0,3.5471557]
[1769513737145,10.47579565,124.06,124.0,3.5471557]
[1769513737342,12.17697048,124.06,124.0,3.5471557]
[1769513741354,4.91257048,124.06,124.01,3.5471557]
[1769513741554,3.21139565,124.06,124.01,3.5471557]
[1769513742859,3.21139565,124.06,124.01,10.8143557]
[1769513743158,3.21139565,124.06,124.02,3.5471557]
[1769513747857,3.21139565,124.06,124.02,10.8137557]
[1769513748860,3.21139565,124.06,124.02,3.5471557]
[1769513750563,4.91257048,124.06,124.01,7.267]
[1769513750764,4.91257048,124.06,124.01,10.8141557]
[1769513750966,4.91257048,124.06,124.01,3.5471557]
[1769513754165,3.31987814,124.05,124.01,3.5471557]
[1769513754967,3.31987814,124.05,123.99,3.39775176]
[1769513755671,1.70117483,124.04,123.99,3.39775176]
[1769513755969,3.31987814,124.03,123.97,10.90661624]
[1769513756467,3.31987814,124.03,123.98,3.39775176]
[1769513757971,1.70117483,124.02,123.98,3.39775176]
[1769513758174,1.70117483,124.01,123.97,3.39775176]
[1769513758470,5.02105297,124.02,123.97,3.39775176]
[1769513759967,5.02105297,124.02,123.96,7.50886448]
[1769513759968,1.70117483,124.0,123.96,7.50886448]
[1769513760167,1.70117483,124.0,123.95,320.34661624]
[1769513760369,1.70117483,124.02,123.96,3.39775176]
[1769513760664,1.70117483,124.02,123.97,3.39775176]
[1769513760866,5.02105297,124.02,123.97,3.39775176]
[1769513761068,3.31987814,124.01,123.95,10.90661624]
[1769513761267,5.02105297,124.01,123.95,10.90661624]
[1769513761668,3.31987814,124.0,123.95,10.90661624]
[1769513761874,5.02105297,124.0,123.95,3.39775176]
[1769513764563,1.70117483,123.99,123.95,3.39775176]
[1769513765674,5.02105297,123.99,123.94,7.50886448]
[1769513766177,5.02105297,123.99,123.93,322.42661624]
[1769513766565,1.70117483,123.97,123.93,322.42661624]
[1769513769279,1.70117483,123.97,123.93,329.69851624]
[1769513770378,1.70117483,123.97,123.93,322.18965176]
[1769513770677,1.70117483,123.97,123.93,329.69851624]
[1769513771674,1.70117483,123.97,123.93,322.18965176]
[1769513771875,1.70117483,123.97,123.94,7.2713]
[1769513772981,1.70117483,123.97,123.93,314.91775176]
[1769513775977,5.02105297,123.99,123.93,314.91775176]
[1769513777177,3.31987814,123.99,123.93,314.91775176]
[1769513779176,5.02105297,123.99,123.93,314.91775176]
[1769513780882,12.28945297,123.99,123.93,314.91775176]
[1769513781684,12.28945297,123.99,123.94,3.51824255]
[1769513785088,3.52988431,123.98,123.94,3.51824255]
[1769513790899,3.52988431,123.97,123.92,3.21786539]
[1769513791192,5.23105914,123.97,123.92,3.21786539]
[1769513791391,3.52988431,123.97,123.92,3.21786539]
[1769513791890,10.80018431,123.96,123.92,3.21786539]
[1769513793494,10.80018431,123.96,123.9,4.92181315]
[1769513795591,10.80118431,123.95,123.9,3.21786539]
[1769513797494,3.52988431,123.94,123.9,3.21786539]
[1769513798594,10.80138431,123.94,123.89,322.16]
[1769513799096,10.80138431,123.94,123.88,3.21786539]
[1769513799895,3.52988431,123.93,123.88,3.21786539]
[1769513802496,10.80198431,123.93,123.88,3.21786539]
[1769513806901,3.52988431,123.93,123.88,3.21786539]
[1769513807901,3.52988431,123.93,123.88,10.49266539]
[1769513812207,3.52988431,123.93,123.89,7.2741]
[1769513819016,3.52988431,123.93,123.88,3.21786539]
[1769513820915,3.52988431,123.93,123.88,10.49256539]
[1769513821211,10.80198431,123.93,123.88,3.21786539]
[1769513821411,7.2721,123.93,123.88,3.21786539]
[1769513821617,3.36852217,123.92,123.87,329.4753]
[1769513822117,3.36852217,123.91,123.86,3.38886176]
[1769513822613,12.34516993,123.92,123.86,7.276]
[1769513822816,12.34516993,123.92,123.84,323.98394776]
[1769513822817,3.36852217,123.94,123.88,3.38886176]
[1769513823918,3.36852217,123.93,123.88,3.38886176]
[1769513827520,5.07246993,123.97,123.9,3.38886176]
[1769513827719,3.36852217,123.99,123.92,3.38886176]
[1769513829026,10.63782217,123.98,123.92,3.38886176]
[1769513829225,10.63782217,123.98,123.91,8.97694776]
[1769513829226,10.63782217,123.98,123.93,5.09280952]
[1769513829427,10.63782217,123.98,123.94,3.38886176]
[1769513829428,7.2693,123.98,123.94,3.38886176]
[1769513830125,3.36852217,124.0,123.94,3.38886176]
[1769513830923,7.2684,123.99,123.94,3.38886176]
[1769513834923,3.36852217,124.0,123.95,3.38886176]
[1769513839529,10.63652217,124.0,123.95,3.38886176]
[1769513841234,10.63702217,123.99,123.93,5.09280952]
[1769513841630,3.42139166,123.98,123.93,3.38886176]
[1769513846435,7.2685,123.99,123.94,5.13684425]
[1769513846626,7.2685,123.99,123.94,3.43289649]
[1769513846827,4.97087976,124.0,123.94,3.43289649]
[1769513846828,3.266932,124.0,123.94,3.43289649]
[1769513847137,3.266932,124.0,123.95,3.43289649]
[1769513848331,4.97087976,124.0,123.95,3.43289649]
[1769513853542,3.266932,123.98,123.93,3.43289649]
[1769513853730,4.97035555,123.98,123.93,3.43289649]
[1769513857644,3.266932,123.98,123.93,3.43289649]
[1769513861847,4.97035555,123.97,123.91,10.70599649]
[1769513862749,3.266932,123.96,123.91,10.70599649]
[1769513863244,3.266932,123.96,123.91,3.43289649]
[1769513863447,1.70342355,123.95,123.91,3.43289649]
[1769513863643,3.266932,123.94,123.9,7.2736]
[1769513863842,3.266932,123.94,123.89,332.88709649]
[1769513864043,4.97035555,123.94,123.89,332.88709649]
[1769513864838,4.97035555,123.94,123.89,10.70709649]
[1769513865344,3.266932,123.94,123.89,10.70709649]
[1769513865544,4.97035555,123.94,123.89,10.70709649]
[1769513867649,1.70342355,123.93,123.89,10.70709649]
[1769513868048,1.70342355,123.93,123.89,3.43289649]
[1769513871060,4.97035555,123.93,123.88,7.2748]
[1769513871556,4.97035555,123.93,123.88,10.70769649]
[1769513872355,1.70342355,123.92,123.88,10.70769649]
[1769513876458,1.70342355,123.94,123.9,3.43357387]
[1769513876859,3.39376724,123.95,123.9,3.43357387]
[1769513877449,1.70342355,123.96,123.9,3.43357387]
[1769513877658,5.09719079,123.96,123.9,3.43357387]
[1769513877956,5.09719079,123.96,123.91,7.273]
[1769513878956,5.09719079,123.96,123.92,7.2725]
[1769513880161,1.70342355,123.95,123.92,7.2725]
[1769513881865,1.70342355,123.95,123.9,10.70707387]
[1769513884367,5.09719079,123.95,123.9,10.70707387]
[1769513884865,5.09719079,123.95,123.9,3.43357387]
[1769513887567,1.70342355,123.95,123.9,3.43357387]
[1769513893273,8.97442355,123.95,123.9,3.43357387]
[1769513896777,12.36819079,123.95,123.9,3.43357387]
[1769513896983,7.2714,123.94,123.9,3.43357387]
[1769513902881,5.09719079,123.95,123.9,3.43357387]
[1769513903980,7.2707,123.96,123.9,3.43357387]
[1769513904179,10.48589374,123.96,123.9,3.43357387]
[1769513904781,3.3731581,123.95,123.9,3.43357387]
[1769513905175,12.34618165,123.97,123.9,3.43357387]
[1769513905384,12.34618165,123.97,123.91,3.53706115]
[1769513908686,3.3731581,123.96,123.91,3.53706115]
[1769513910886,10.6433581,123.96,123.91,3.53706115]
[1769513911882,5.07658165,123.95,123.89,3.53706115]
[1769513912187,3.3731581,123.94,123.89,3.53706115]
[1769513912887,10.6446581,123.94,123.89,3.53706115]
[1769513914086,10.6446581,123.94,123.89,11.06523616]
[1769513915092,10.6446581,123.94,123.89,3.53706115]
[1769513921703,12.34924043,123.94,123.89,3.53706115]
[1769513921895,5.07774043,123.94,123.89,3.53706115]
[1769513924506,5.07774043,123.94,123.89,10.81136115]
[1769513924999,5.07774043,123.93,123.89,3.53706115]
[1769513927907,5.07774043,123.93,123.89,10.81136115]
[1769513929099,3.3731581,123.93,123.89,10.81136115]
[1769513932915,3.3731581,123.93,123.89,3.53706115]